fUSD/lending_fUSD_20260531
["ID","MTS","AMOUNT","RATE_DAILY","PERIOD"]
[423569551,1780241351000,-150.0,9.998e-05,2]
[423569544,1780241351000,-500.0,9.491e-05,2]
[423569553,1780241402000,500.0,0.0003013,120]
[423569563,1780241431000,-311.40263019,9.998e-05,2]
[423569564,1780241431000,-500.0,9.998e-05,2]
[423569561,1780241431000,-51.12276654,9.998e-05,2]
[423569562,1780241431000,-500.0,9.998e-05,2]
[423569559,1780241431000,-150.0,9.997e-05,2]
[423569555,1780241431000,-209.17060647,9.64e-05,2]
[423569558,1780241431000,-181.59052254,9.997e-05,2]
[423569557,1780241431000,-1018.40947746,9.997e-05,2]
[423569556,1780241431000,-300.0,9.997e-05,2]
[423569566,1780241431000,-500.0,9.998e-05,2]
[423569560,1780241431000,-15.40947746,9.998e-05,2]
[423569565,1780241431000,-185.1115839,9.998e-05,2]
[423569570,1780241431000,-467.25535539,9.998e-05,2]
[423569569,1780241431000,-500.0,9.998e-05,2]
[423569567,1780241431000,-151.35901937,9.998e-05,2]
[423569578,1780241431000,-500.0,9.998e-05,2]
[423569577,1780241431000,-500.0,9.998e-05,2]
[423569579,1780241431000,-500.0,9.998e-05,2]
[423569576,1780241431000,-164.35239368,9.998e-05,2]
[423569574,1780241431000,-500.0,9.998e-05,2]
[423569580,1780241431000,-500.0,9.998e-05,2]
[423569573,1780241431000,-31.89144863,9.998e-05,2]
[423569571,1780241431000,-32.74464461,9.998e-05,2]
[423569572,1780241431000,-468.10855137,9.998e-05,2]
[423569568,1780241431000,-348.64098063,9.998e-05,2]
[423569575,1780241431000,-500.0,9.998e-05,2]
[423569627,1780241432000,-170.1,0.00010246,2]
[423569624,1780241432000,-185.20190008,0.00010163,2]
[423569622,1780241432000,-150.0,0.00010163,2]
[423569623,1780241432000,-150.0,0.00010163,2]
[423569620,1780241432000,-243.61210468,0.00010163,2]
[423569619,1780241432000,-150.0,0.00010163,2]
[423569617,1780241432000,-500.0,0.00010163,2]
[423569618,1780241432000,-500.0,0.00010163,2]
[423569615,1780241432000,-500.0,0.00010163,2]
[423569626,1780241432000,-200.0,0.00010164,2]
[423569613,1780241432000,-500.0,0.00010163,2]
[423569621,1780241432000,-150.0,0.00010163,2]
[423569625,1780241432000,-500.0,0.00010163,2]
[423569636,1780241432000,-500.0,0.00010711,2]
[423569629,1780241432000,-500.0,0.00010437,2]
[423569631,1780241432000,-377.59,0.00010522,2]
[423569630,1780241432000,-170.1,0.00010502,2]
[423569633,1780241432000,-167.17,0.0001062,2]
[423569634,1780241432000,-2000.0,0.00010624,2]
[423569632,1780241432000,-500.0,0.00010583,2]
[423569635,1780241432000,-964.42,0.00010624,2]
[423569637,1780241432000,-170.1,0.00010758,2]
[423569638,1780241432000,-1733.83878533,0.00010765,2]
[423569640,1780241432000,-500.0,0.00010775,2]
[423569639,1780241432000,-500.0,0.00010775,2]
[423569641,1780241432000,-500.0,0.00010775,2]
[423569616,1780241432000,-505.11872968,0.00010163,2]
[423569628,1780241432000,-466.01,0.00010314,2]
[423569614,1780241432000,-500.0,0.00010163,2]
[423569582,1780241432000,-500.0,9.998e-05,2]
[423569611,1780241432000,-500.0,0.00010163,2]
[423569581,1780241432000,-500.0,9.998e-05,2]
[423569583,1780241432000,-500.0,9.998e-05,2]
[423569584,1780241432000,-500.0,9.998e-05,2]
[423569585,1780241432000,-500.0,9.998e-05,2]
[423569642,1780241432000,-500.0,0.00010775,2]
[423569589,1780241432000,-500.0,9.998e-05,2]
[423569588,1780241432000,-500.0,9.998e-05,2]
[423569590,1780241432000,-500.0,9.998e-05,2]
[423569591,1780241432000,-500.0,9.998e-05,2]
[423569593,1780241432000,-500.0,9.998e-05,2]
[423569592,1780241432000,-500.0,9.998e-05,2]
[423569595,1780241432000,-500.0,9.998e-05,2]
[423569596,1780241432000,-500.0,9.998e-05,2]
[423569612,1780241432000,-500.0,0.00010163,2]
[423569599,1780241432000,-200.0,9.998e-05,2]
[423569598,1780241432000,-500.0,9.998e-05,2]
[423569594,1780241432000,-500.0,9.998e-05,2]
[423569602,1780241432000,-5762.82330053,0.0001,2]
[423569601,1780241432000,-1179.76228983,0.0001,2]
[423569600,1780241432000,-379.14135292,0.0001,2]
[423569603,1780241432000,-158.34,0.00010035,2]
[423569605,1780241432000,-500.0,0.00010163,2]
[423569604,1780241432000,-500.0,0.00010163,2]
[423569606,1780241432000,-500.0,0.00010163,2]
[423569607,1780241432000,-500.0,0.00010163,2]
[423569608,1780241432000,-500.0,0.00010163,2]
[423569609,1780241432000,-500.0,0.00010163,2]
[423569610,1780241432000,-500.0,0.00010163,2]
[423569597,1780241432000,-500.0,9.998e-05,2]
[423569644,1780241432000,-500.0,0.00010775,2]
[423569586,1780241432000,-500.0,9.998e-05,2]
[423569647,1780241432000,-500.0,0.00010775,2]
[423569676,1780241432000,-500.0,0.00011139,2]
[423569677,1780241432000,-500.0,0.00011139,2]
[423569679,1780241432000,-500.0,0.00011139,2]
[423569682,1780241432000,-160.0,0.00011251,2]
[423569681,1780241432000,-501.83615294,0.00011139,2]
[423569683,1780241432000,-500.0,0.00011259,2]
[423569685,1780241432000,-377.59,0.00011312,2]
[423569684,1780241432000,-158.34,0.00011289,2]
[423569686,1780241432000,-6273.4931,0.00011397,2]
[423569688,1780241432000,-381.81460849,0.00011499,2]
[423569687,1780241432000,-307.13637542,0.00011499,2]
[423569689,1780241432000,-500.0,0.00011499,2]
[423569690,1780241432000,-500.0,0.00011499,2]
[423569680,1780241432000,-500.0,0.00011139,2]
[423569693,1780241432000,-475.60585256,0.00011499,2]
[423569695,1780241432000,-40588.93949474,0.000115,2]
[423569694,1780241432000,-500.0,0.00011499,2]
[423569699,1780241432000,-151.0,0.00011597,2]
[423569696,1780241432000,-500.0,0.00011533,2]
[423569697,1780241432000,-377.59,0.00011575,2]
[423569698,1780241432000,-442.3205589,0.0001159,2]
[423569700,1780241432000,-151.0,0.00011597,2]
[423569701,1780241432000,-151.0,0.00011597,2]
[423569702,1780241432000,-151.0,0.00011597,2]
[423569705,1780241432000,-466.01,0.00011604,2]
[423569703,1780241432000,-1112.70232125,0.00011598,2]
[423569704,1780241432000,-150.0,0.000116,2]
[423569645,1780241432000,-500.0,0.00010775,2]
[423569691,1780241432000,-382.29475162,0.00011499,2]
[423569678,1780241432000,-500.0,0.00011139,2]
[423569692,1780241432000,-500.0,0.00011499,2]
[423569674,1780241432000,-150.25278799,0.00011139,2]
[423569675,1780241432000,-500.0,0.00011139,2]
[423569646,1780241432000,-500.0,0.00010775,2]
[423569648,1780241432000,-500.0,0.00010775,2]
[423569654,1780241432000,-500.0,0.00010775,2]
[423569652,1780241432000,-500.0,0.00010775,2]
[423569650,1780241432000,-500.0,0.00010775,2]
[423569649,1780241432000,-500.0,0.00010775,2]
[423569653,1780241432000,-504.4235805,0.00010775,2]
[423569651,1780241432000,-500.0,0.00010775,2]
[423569655,1780241432000,-500.0,0.00010775,2]
[423569656,1780241432000,-500.0,0.00010775,2]
[423569658,1780241432000,-500.0,0.00010775,2]
[423569659,1780241432000,-212.0,0.00010775,2]
[423569657,1780241432000,-500.0,0.00010775,2]
[423569643,1780241432000,-500.0,0.00010775,2]
[423569662,1780241432000,-1518.69740218,0.00010956,2]
[423569660,1780241432000,-377.59,0.00010785,2]
[423569673,1780241432000,-500.0,0.00011139,2]
[423569671,1780241432000,-500.0,0.00011139,2]
[423569672,1780241432000,-500.0,0.00011139,2]
[423569670,1780241432000,-218.52309198,0.00011139,2]
[423569669,1780241432000,-500.0,0.00011139,2]
[423569668,1780241432000,-377.59,0.00011049,2]
[423569664,1780241432000,-500.0,0.00010985,2]
[423569667,1780241432000,-255.0,0.00010997,2]
[423569665,1780241432000,-420.0,0.00010997,2]
[423569666,1780241432000,-1680.0,0.00010997,2]
[423569661,1780241432000,-2946.69806302,0.00010956,2]
[423569663,1780241432000,-150.0,0.00010959,2]
[423569749,1780241433000,-186.87,0.00012405,2]
[423569748,1780241433000,-167.17,0.00012373,2]
[423569750,1780241433000,-186.87,0.00012468,2]
[423569746,1780241433000,-186.87,0.00012343,2]
[423569740,1780241433000,-40588.93949468,0.00012256,2]
[423569747,1780241433000,-560.81639327,0.00012355,2]
[423569743,1780241433000,-186.87,0.0001228,2]
[423569744,1780241433000,-886.79,0.00012316,2]
[423569741,1780241433000,-333.3,0.00012263,2]
[423569742,1780241433000,-268.36,0.00012263,2]
[423569739,1780241433000,-344.42,0.0001223,2]
[423569752,1780241433000,-350.0,0.00012482,2]
[423569745,1780241433000,-768.56,0.00012329,2]
[423569751,1780241433000,-1261.21,0.00012468,2]
[423569761,1780241433000,-1546.0,0.00012623,2]
[423569755,1780241433000,-500.0,0.00012548,2]
[423569757,1780241433000,-2966.0,0.00012576,5]
[423569754,1780241433000,-158.34,0.00012544,2]
[423569756,1780241433000,-2736.0,0.00012576,5]
[423569758,1780241433000,-2925.0,0.00012576,5]
[423569763,1780241433000,-1546.0,0.00012623,2]
[423569759,1780241433000,-350.0,0.00012615,2]
[423569760,1780241433000,-1546.0,0.00012623,2]
[423569762,1780241433000,-1546.0,0.00012623,2]
[423569764,1780241433000,-1546.0,0.00012623,2]
[423569765,1780241433000,-1546.0,0.00012623,2]
[423569766,1780241433000,-1546.0,0.00012623,2]
[423569738,1780241433000,-644.07,0.0001223,2]
[423569753,1780241433000,-525.5,0.00012493,2]
[423569737,1780241433000,-499.95,0.0001223,2]
[423569706,1780241433000,-500.0,0.00011632,2]
[423569733,1780241433000,-1617.94599797,0.00012183,2]
[423569767,1780241433000,-1546.0,0.00012623,2]
[423569707,1780241433000,-500.0,0.00011632,2]
[423569708,1780241433000,-500.0,0.00011632,2]
[423569709,1780241433000,-350.90097659,0.00011632,2]
[423569711,1780241433000,-153.0,0.00011743,2]
[423569710,1780241433000,-181.64527902,0.00011741,2]
[423569712,1780241433000,-186.87,0.0001178,2]
[423569714,1780241433000,-500.0,0.00011807,2]
[423569715,1780241433000,-186.87,0.00011843,2]
[423569716,1780241433000,-40588.93949468,0.00011878,2]
[423569713,1780241433000,-500.0,0.000118,4]
[423569718,1780241433000,-186.87,0.00011905,2]
[423569717,1780241433000,-1100.0,0.000119,4]
[423569721,1780241433000,-169.9,0.00011905,2]
[423569719,1780241433000,-169.9,0.00011905,2]
[423569722,1780241433000,-169.8,0.00011905,2]
[423569720,1780241433000,-169.9,0.00011905,2]
[423569724,1780241433000,-186.87,0.00011968,2]
[423569723,1780241433000,-2000.0,0.00011951,2]
[423569726,1780241433000,-500.0,0.00012081,2]
[423569725,1780241433000,-186.87,0.0001203,2]
[423569730,1780241433000,-433.0,0.00012096,2]
[423569727,1780241433000,-186.87,0.00012093,2]
[423569731,1780241433000,-151.0,0.00012154,2]
[423569729,1780241433000,-2351.0,0.00012096,2]
[423569728,1780241433000,-167.0,0.00012096,2]
[423569732,1780241433000,-186.87,0.00012155,2]
[423569734,1780241433000,-153.0,0.00012183,2]
[423569735,1780241433000,-228.9,0.0001219,2]
[423569736,1780241433000,-186.87,0.00012218,2]
[423569768,1780241433000,-1546.0,0.00012623,2]
[423569770,1780241433000,-1546.0,0.00012623,2]
[423569769,1780241433000,-1546.0,0.00012623,2]
[423569803,1780241433000,-2000.0,0.0001291,2]
[423569807,1780241433000,-2000.0,0.0001291,2]
[423569806,1780241433000,-2000.0,0.0001291,2]
[423569804,1780241433000,-2000.0,0.0001291,2]
[423569808,1780241433000,-2000.0,0.0001291,2]
[423569805,1780241433000,-2000.0,0.0001291,2]
[423569811,1780241433000,-200.0,0.00012938,2]
[423569813,1780241433000,-1546.0,0.00012974,2]
[423569815,1780241433000,-1546.0,0.00012974,2]
[423569812,1780241433000,-151.0,0.00012974,2]
[423569810,1780241433000,-200.0,0.00012927,2]
[423569814,1780241433000,-1546.0,0.00012974,2]
[423569816,1780241433000,-1546.0,0.00012974,2]
[423569818,1780241433000,-1546.0,0.00012974,2]
[423569821,1780241433000,-216.3481031,0.0001299,2]
[423569820,1780241433000,-350.0,0.00012987,2]
[423569819,1780241433000,-350.0,0.00012986,3]
[423569822,1780241433000,-864.52702,0.0001299,2]
[423569817,1780241433000,-1546.0,0.00012974,2]
[423569823,1780241433000,-151.28733095,0.0001299,2]
[423569824,1780241433000,-151.0,0.00012999,2]
[423569826,1780241433000,-350.0,0.00013022,2]
[423569825,1780241433000,-40588.93949468,0.00013011,2]
[423569827,1780241433000,-163.38,0.00013028,2]
[423569829,1780241433000,-8152.18853106,0.00013142,2]
[423569771,1780241433000,-151.0,0.00012623,2]
[423569832,1780241433000,-500.0,0.00013242,3]
[423569831,1780241433000,-500.0,0.00013242,2]
[423569830,1780241433000,-153.0,0.00013238,2]
[423569809,1780241433000,-200.0,0.00012917,2]
[423569799,1780241433000,-151.0,0.00012908,2]
[423569828,1780241433000,-38304.74856595,0.00013042,2]
[423569800,1780241433000,-2000.0,0.0001291,2]
[423569802,1780241433000,-2000.0,0.0001291,2]
[423569773,1780241433000,-151.0,0.00012623,2]
[423569775,1780241433000,-162.57738279,0.00012623,2]
[423569776,1780241433000,-153.0,0.00012623,2]
[423569777,1780241433000,-1546.0,0.00012623,2]
[423569774,1780241433000,-151.0,0.00012623,2]
[423569779,1780241433000,-231.81231694,0.00012623,2]
[423569780,1780241433000,-150.0,0.00012633,2]
[423569778,1780241433000,-153.0,0.00012623,2]
[423569781,1780241433000,-40588.93949468,0.00012633,2]
[423569784,1780241433000,-161.02,0.00012687,2]
[423569783,1780241433000,-350.0,0.00012679,2]
[423569782,1780241433000,-350.0,0.00012647,2]
[423569786,1780241433000,-350.0,0.00012773,2]
[423569772,1780241433000,-151.0,0.00012623,2]
[423569785,1780241433000,-350.0,0.00012711,2]
[423569801,1780241433000,-2000.0,0.0001291,2]
[423569798,1780241433000,-151.0,0.00012908,2]
[423569796,1780241433000,-1700.0,0.000129,4]
[423569791,1780241433000,-500.0,0.00012849,2]
[423569787,1780241433000,-14584.0,0.00012795,2]
[423569795,1780241433000,-466.01,0.00012893,2]
[423569797,1780241433000,-200.0,0.00012906,2]
[423569793,1780241433000,-163.0,0.0001288,2]
[423569792,1780241433000,-275.65,0.00012877,2]
[423569790,1780241433000,-38304.74856598,0.0001281,2]
[423569789,1780241433000,-315.31,0.00012801,2]
[423569788,1780241433000,-350.0,0.00012797,2]
[423569794,1780241433000,-500.0,0.00012891,2]
[423569875,1780241434000,-150.0,0.00013488,2]
[423569871,1780241434000,-151.0,0.00013389,2]
[423569872,1780241434000,-151.0,0.00013389,2]
[423569873,1780241434000,-6459.38719601,0.00013443,2]
[423569865,1780241434000,-193.19602902,0.00013343,2]
[423569870,1780241434000,-151.0,0.00013389,2]
[423569868,1780241434000,-500.0,0.00013356,2]
[423569867,1780241434000,-1300.0,0.00013356,2]
[423569863,1780241434000,-736.0,0.00013306,2]
[423569864,1780241434000,-250.0,0.00013315,2]
[423569869,1780241434000,-40588.93949468,0.00013389,2]
[423569874,1780241434000,-150.0,0.00013488,2]
[423569882,1780241434000,-150.0,0.00013488,2]
[423569877,1780241434000,-150.0,0.00013488,2]
[423569879,1780241434000,-150.0,0.00013488,2]
[423569880,1780241434000,-150.68679634,0.00013488,2]
[423569878,1780241434000,-181.56728379,0.00013488,2]
[423569883,1780241434000,-500.0,0.00013498,9]
[423569881,1780241434000,-150.0,0.00013488,2]
[423569885,1780241434000,-309.0,0.000135,2]
[423569886,1780241434000,-1000.0,0.000135,2]
[423569887,1780241434000,-500.0,0.00013501,10]
[423569884,1780241434000,-643.0,0.000135,2]
[423569888,1780241434000,-151.0,0.00013541,2]
[423569866,1780241434000,-500.0,0.00013356,2]
[423569876,1780241434000,-150.0,0.00013488,2]
[423569862,1780241434000,-451.0,0.00013306,2]
[423569846,1780241434000,-370.94,0.00013242,2]
[423569861,1780241434000,-315.0,0.000133,2]
[423569890,1780241434000,-163.38,0.00013544,2]
[423569833,1780241434000,-500.0,0.00013242,4]
[423569834,1780241434000,-500.0,0.00013242,5]
[423569835,1780241434000,-500.0,0.00013242,6]
[423569837,1780241434000,-500.0,0.00013242,8]
[423569838,1780241434000,-500.0,0.00013242,9]
[423569839,1780241434000,-500.0,0.00013242,2]
[423569841,1780241434000,-500.0,0.00013242,4]
[423569836,1780241434000,-500.0,0.00013242,7]
[423569840,1780241434000,-500.0,0.00013242,3]
[423569843,1780241434000,-500.0,0.00013242,6]
[423569842,1780241434000,-500.0,0.00013242,5]
[423569858,1780241434000,-151.0,0.00013251,2]
[423569845,1780241434000,-500.0,0.00013242,8]
[423569844,1780241434000,-500.0,0.00013242,7]
[423569848,1780241434000,-1546.0,0.00013251,2]
[423569850,1780241434000,-1546.0,0.00013251,2]
[423569852,1780241434000,-163.0,0.00013251,2]
[423569854,1780241434000,-151.0,0.00013251,2]
[423569853,1780241434000,-280.3872819,0.00013251,2]
[423569849,1780241434000,-1546.0,0.00013251,2]
[423569856,1780241434000,-151.0,0.00013251,2]
[423569855,1780241434000,-151.0,0.00013251,2]
[423569857,1780241434000,-151.0,0.00013251,2]
[423569860,1780241434000,-1045.96126671,0.00013289,2]
[423569859,1780241434000,-2000.0,0.00013279,2]
[423569847,1780241434000,-1546.0,0.00013251,2]
[423569889,1780241434000,-228.9,0.00013544,2]
[423569851,1780241434000,-1546.0,0.00013251,2]
[423569892,1780241434000,-150.0,0.00013624,2]
[423569925,1780241434000,-690.92,0.00013698,2]
[423569927,1780241434000,-690.92,0.00013698,2]
[423569924,1780241434000,-690.92,0.00013698,2]
[423569926,1780241434000,-690.92,0.00013698,2]
[423569929,1780241434000,-690.92,0.00013698,2]
[423569928,1780241434000,-690.92,0.00013698,2]
[423569930,1780241434000,-690.92,0.00013698,2]
[423569948,1780241434000,-565.6,0.00013698,2]
[423569933,1780241434000,-500.0,0.00013698,2]
[423569934,1780241434000,-508.35042822,0.00013698,2]
[423569932,1780241434000,-690.92,0.00013698,2]
[423569935,1780241434000,-500.0,0.00013698,2]
[423569921,1780241434000,-500.0,0.00013698,2]
[423569936,1780241434000,-500.0,0.00013698,2]
[423569938,1780241434000,-500.0,0.00013698,2]
[423569939,1780241434000,-500.0,0.00013698,2]
[423569940,1780241434000,-500.0,0.00013698,2]
[423569943,1780241434000,-500.0,0.00013698,2]
[423569946,1780241434000,-565.6,0.00013698,2]
[423569942,1780241434000,-500.0,0.00013698,2]
[423569941,1780241434000,-500.0,0.00013698,2]
[423569945,1780241434000,-500.22762284,0.00013698,2]
[423569944,1780241434000,-500.0,0.00013698,2]
[423569947,1780241434000,-565.6,0.00013698,2]
[423569949,1780241434000,-565.6,0.00013698,2]
[423569891,1780241434000,-150.0,0.00013559,2]
[423569937,1780241434000,-500.0,0.00013698,2]
[423569923,1780241434000,-690.92,0.00013698,2]
[423569931,1780241434000,-690.92,0.00013698,2]
[423569920,1780241434000,-500.0,0.00013698,2]
[423569893,1780241434000,-150.0,0.0001363,2]
[423569922,1780241434000,-500.0,0.00013698,2]
[423569895,1780241434000,-163.0,0.0001367,2]
[423569897,1780241434000,-886.79,0.00013684,2]
[423569894,1780241434000,-203.2504248,0.00013667,2]
[423569898,1780241434000,-350.0,0.00013692,2]
[423569899,1780241434000,-169.465949,0.00013695,2]
[423569896,1780241434000,-19040.0,0.00013671,2]
[423569900,1780241434000,-500.0,0.00013698,2]
[423569901,1780241434000,-500.0,0.00013698,2]
[423569904,1780241434000,-500.0,0.00013698,2]
[423569903,1780241434000,-500.0,0.00013698,2]
[423569905,1780241434000,-500.0,0.00013698,2]
[423569906,1780241434000,-551.16841754,0.00013698,2]
[423569902,1780241434000,-500.0,0.00013698,2]
[423569917,1780241434000,-500.0,0.00013698,2]
[423569908,1780241434000,-500.0,0.00013698,2]
[423569914,1780241434000,-500.0,0.00013698,2]
[423569918,1780241434000,-500.0,0.00013698,2]
[423569916,1780241434000,-500.0,0.00013698,2]
[423569911,1780241434000,-500.0,0.00013698,2]
[423569915,1780241434000,-500.0,0.00013698,2]
[423569912,1780241434000,-500.0,0.00013698,2]
[423569919,1780241434000,-500.0,0.00013698,2]
[423569909,1780241434000,-500.0,0.00013698,2]
[423569910,1780241434000,-500.0,0.00013698,2]
[423569907,1780241434000,-500.0,0.00013698,2]
[423569913,1780241434000,-499.80000009,0.00013698,2]
[423569988,1780241435000,-560.8,0.00013698,2]
[423569991,1780241435000,-560.8,0.00013698,2]
[423569992,1780241435000,-560.8,0.00013698,2]
[423569990,1780241435000,-560.8,0.00013698,2]
[423569989,1780241435000,-560.8,0.00013698,2]
[423569980,1780241435000,-1173.47,0.00013698,2]
[423569986,1780241435000,-1173.47,0.00013698,2]
[423569985,1780241435000,-1173.47,0.00013698,2]
[423569984,1780241435000,-1173.47,0.00013698,2]
[423569983,1780241435000,-1173.47,0.00013698,2]
[423569993,1780241435000,-560.8,0.00013698,2]
[423569987,1780241435000,-560.8,0.00013698,2]
[423569994,1780241435000,-560.8,0.00013698,2]
[423570008,1780241435000,-500.0,0.00013698,2]
[423569997,1780241435000,-500.0,0.00013698,2]
[423569996,1780241435000,-500.0,0.00013698,2]
[423569999,1780241435000,-500.0,0.00013698,2]
[423569998,1780241435000,-500.0,0.00013698,2]
[423570002,1780241435000,-500.0,0.00013698,2]
[423570000,1780241435000,-321.46293792,0.00013698,2]
[423570001,1780241435000,-500.0,0.00013698,2]
[423570003,1780241435000,-500.0,0.00013698,2]
[423570005,1780241435000,-500.0,0.00013698,2]
[423570004,1780241435000,-500.0,0.00013698,2]
[423570007,1780241435000,-500.0,0.00013698,2]
[423570006,1780241435000,-500.0,0.00013698,2]
[423569981,1780241435000,-1173.47,0.00013698,2]
[423569995,1780241435000,-500.0,0.00013698,2]
[423569979,1780241435000,-1173.47,0.00013698,2]
[423569951,1780241435000,-565.6,0.00013698,2]
[423569978,1780241435000,-1173.47,0.00013698,2]
[423569952,1780241435000,-565.6,0.00013698,2]
[423570009,1780241435000,-500.0,0.00013698,2]
[423569950,1780241435000,-565.6,0.00013698,2]
[423569954,1780241435000,-565.6,0.00013698,2]
[423569953,1780241435000,-565.6,0.00013698,2]
[423569956,1780241435000,-500.0,0.00013698,2]
[423569957,1780241435000,-500.0,0.00013698,2]
[423569955,1780241435000,-565.6,0.00013698,2]
[423569960,1780241435000,-500.0,0.00013698,2]
[423569959,1780241435000,-500.0,0.00013698,2]
[423569964,1780241435000,-500.0,0.00013698,2]
[423569965,1780241435000,-500.0,0.00013698,2]
[423569963,1780241435000,-500.0,0.00013698,2]
[423569958,1780241435000,-508.41266581,0.00013698,2]
[423569962,1780241435000,-500.0,0.00013698,2]
[423569961,1780241435000,-422.76127402,0.00013698,2]
[423569966,1780241435000,-500.0,0.00013698,2]
[423569968,1780241435000,-500.0,0.00013698,2]
[423569970,1780241435000,-500.0,0.00013698,2]
[423569969,1780241435000,-500.0,0.00013698,2]
[423569971,1780241435000,-500.0,0.00013698,2]
[423569972,1780241435000,-500.0,0.00013698,2]
[423569974,1780241435000,-303.83318809,0.00013698,2]
[423569976,1780241435000,-1173.47,0.00013698,2]
[423569973,1780241435000,-500.0,0.00013698,2]
[423569977,1780241435000,-1173.47,0.00013698,2]
[423569975,1780241435000,-1173.47,0.00013698,2]
[423569982,1780241435000,-1173.47,0.00013698,2]
[423570012,1780241435000,-500.0,0.00013698,2]
[423569967,1780241435000,-500.0,0.00013698,2]
[423570011,1780241435000,-500.0,0.00013698,2]
[423570045,1780241435000,-2618.4,0.00013698,2]
[423570046,1780241435000,-500.0,0.00013698,2]
[423570047,1780241435000,-216.73250781,0.00013698,2]
[423570048,1780241435000,-500.0,0.00013698,2]
[423570049,1780241435000,-431.36730737,0.00013698,2]
[423570050,1780241435000,-500.0,0.00013698,2]
[423570052,1780241435000,-500.0,0.00013698,2]
[423570051,1780241435000,-500.0,0.00013698,2]
[423570053,1780241435000,-500.0,0.00013698,2]
[423570055,1780241435000,-202.78843615,0.00013698,2]
[423570056,1780241435000,-500.0,0.00013698,2]
[423570054,1780241435000,-500.0,0.00013698,2]
[423570058,1780241435000,-500.0,0.00013698,2]
[423570060,1780241435000,-500.0,0.00013698,2]
[423570057,1780241435000,-500.0,0.00013698,2]
[423570059,1780241435000,-500.0,0.00013698,2]
[423570061,1780241435000,-500.0,0.00013698,2]
[423570062,1780241435000,-500.0,0.00013698,2]
[423570063,1780241435000,-500.0,0.00013698,2]
[423570064,1780241435000,-714.91,0.00013698,2]
[423570066,1780241435000,-714.91,0.00013698,2]
[423570068,1780241435000,-714.91,0.00013698,2]
[423570067,1780241435000,-500.0,0.00013698,2]
[423570069,1780241435000,-714.91,0.00013698,2]
[423570071,1780241435000,-714.91,0.00013698,2]
[423570070,1780241435000,-714.91,0.00013698,2]
[423570010,1780241435000,-500.0,0.00013698,2]
[423570044,1780241435000,-2618.4,0.00013698,2]
[423570041,1780241435000,-2618.4,0.00013698,2]
[423570065,1780241435000,-500.0,0.00013698,2]
[423570043,1780241435000,-2618.4,0.00013698,2]
[423570042,1780241435000,-544.57270483,0.00013698,2]
[423570013,1780241435000,-500.0,0.00013698,2]
[423570015,1780241435000,-500.0,0.00013698,2]
[423570014,1780241435000,-500.0,0.00013698,2]
[423570019,1780241435000,-501.20372086,0.00013698,2]
[423570016,1780241435000,-494.05405209,0.00013698,2]
[423570018,1780241435000,-500.0,0.00013698,2]
[423570017,1780241435000,-151.0,0.00013698,2]
[423570021,1780241435000,-500.0,0.00013698,2]
[423570024,1780241435000,-500.0,0.00013698,2]